[Event "*** Titled Tuesday 3|2 Blitz"]
[Site "Chess.com"]
[Date "2016.05.03"]
[Round "6"]
[White "MinhGTrAn"]
[Black "Dlugy"]
[Result "0-1"]
[WhiteElo "2623"]
[BlackElo "2594"]
[TimeControl "180+2"]
[EndTime "12:18:47 PDT"]
[Termination "Dlugy won by resignation"]

1. d4 {[%clk 0:03:01.9]} 1... d5 {[%clk 0:03:01]} 2. c4 {[%clk 0:03:02.8]} 2...
dxc4 {[%clk 0:03:02.3]} 3. Nf3 {[%clk 0:03:03.8]} 3... a6 {[%clk 0:03:03.4]} 4.
a4 {[%clk 0:03:02.1]} 4... Nc6 {[%clk 0:03:03.9]} 5. e3 {[%clk 0:03:01.4]} 5...
Bg4 {[%clk 0:03:04.7]} 6. Bxc4 {[%clk 0:03:01.4]} 6... e6 {[%clk 0:03:06.3]} 7.
O-O {[%clk 0:03:02.6]} 7... Nf6 {[%clk 0:03:07.4]} 8. h3 {[%clk 0:03:00.7]} 8...
Bh5 {[%clk 0:03:07.9]} 9. Nc3 {[%clk 0:03:01.1]} 9... Bd6 {[%clk 0:03:07.8]} 10.
Be2 {[%clk 0:02:54.2]} 10... O-O {[%clk 0:03:08.8]} 11. b3 {[%clk 0:02:48.2]}
11... Qe7 {[%clk 0:03:06.4]} 12. Bb2 {[%clk 0:02:48.1]} 12... Rad8 {[%clk
0:03:06.3]} 13. Nd2 {[%clk 0:02:31.7]} 13... Bxe2 {[%clk 0:03:05.8]} 14. Qxe2
{[%clk 0:02:32.6]} 14... e5 {[%clk 0:03:07]} 15. d5 {[%clk 0:02:31.1]} 15... Nb4
{[%clk 0:03:08.2]} 16. e4 {[%clk 0:02:25.8]} 16... Nc2 {[%clk 0:03:07.4]} 17.
Rac1 {[%clk 0:02:15.6]} 17... Nd4 {[%clk 0:03:08.4]} 18. Qc4 {[%clk 0:02:04.8]}
18... Nh5 {[%clk 0:03:01.6]} 19. Ne2 {[%clk 0:02:02.9]} 19... b5 {[%clk
0:02:47.6]} 20. Qd3 {[%clk 0:01:57.4]} 20... Nxe2+ {[%clk 0:02:48]} 21. Qxe2
{[%clk 0:01:59.3]} 21... Nf4 {[%clk 0:02:49.3]} 22. Qf3 {[%clk 0:01:51.4]} 22...
Qg5 {[%clk 0:02:48.4]} 23. Rfd1 {[%clk 0:01:49.7]} 23... f5 {[%clk 0:02:22.3]}
24. Rc6 {[%clk 0:01:36.7]} 24... Rf6 {[%clk 0:02:13.9]} 25. Bc1 {[%clk
0:01:32.3]} 25... Rg6 {[%clk 0:02:14]} 26. g3 {[%clk 0:01:07.8]} 26... Nxh3+
{[%clk 0:02:08.6]} 27. Kg2 {[%clk 0:01:01.6]} 27... Rh6 {[%clk 0:01:27.8]} 28.
exf5 {[%clk 0:00:49.8]} 28... Nf4+ {[%clk 0:01:10.3]} 29. Kg1 {[%clk 0:00:50.6]}
29... Rf8 {[%clk 0:00:52]} 30. Ne4 {[%clk 0:00:46]} 30... Qxf5 {[%clk
0:00:51.6]} 31. gxf4 {[%clk 0:00:46.4]} 31... exf4 {[%clk 0:00:48]} 32. Nxd6
{[%clk 0:00:35.2]} 32... cxd6 {[%clk 0:00:47.6]} 33. Kg2 {[%clk 0:00:24.6]}
33... Rg6+ {[%clk 0:00:40.3]} 34. Kf1 {[%clk 0:00:23.9]} 34... Rh6 {[%clk
0:00:41.5]} 35. Kg2 {[%clk 0:00:22.8]} 35... Qg5+ {[%clk 0:00:40.5]} 36. Kf1
{[%clk 0:00:21.2]} 36... Qf5 {[%clk 0:00:36.7]} 37. Rc3 {[%clk 0:00:22]} 37...
Rh4 {[%clk 0:00:22.5]} 38. Re1 {[%clk 0:00:17.7]} 38... g5 {[%clk 0:00:23.2]}
39. Bb2 {[%clk 0:00:12.1]} 39... g4 {[%clk 0:00:22.3]} 40. Rc7 {[%clk
0:00:12.1]} 40... gxf3 {[%clk 0:00:13.6]} 41. Rg7+ {[%clk 0:00:12.8]} 41... Kh8
{[%clk 0:00:15.1]} 42. Rg5+ {[%clk 0:00:12.5]} 42... Qe5 {[%clk 0:00:16.5]} 43.
Bxe5+ {[%clk 0:00:02.9]} 43... dxe5 {[%clk 0:00:17.4]} 44. Rexe5 {[%clk
0:00:03.3]} 44... Rh1+ {[%clk 0:00:18]} 45. Rg1 {[%clk 0:00:04.3]} 45... Rxg1+
{[%clk 0:00:17.3]} 46. Kxg1 {[%clk 0:00:05.4]} 46... Rg8+ {[%clk 0:00:17.6]} 47.
Kf1 {[%clk 0:00:04.9]} 47... Rc8 {[%clk 0:00:18.2]} 48. Kg1 {[%clk 0:00:04]}
48... Rc5 {[%clk 0:00:17.3]} 49. a5 {[%clk 0:00:03.2]} 49... b4 {[%clk
0:00:18.2]} 50. Re6 {[%clk 0:00:03.7]} 50... Rxa5 {[%clk 0:00:17.7]} 51. Rd6
{[%clk 0:00:03.9]} 51... Kg7 {[%clk 0:00:18.3]} 52. Rd8 {[%clk 0:00:04.1]} 52...
Ra3 {[%clk 0:00:17.5]} 53. d6 {[%clk 0:00:04.6]} 53... Rxb3 {[%clk 0:00:18.8]}
54. Rb8 {[%clk 0:00:04.6]} 54... Rd3 {[%clk 0:00:16.8]} 55. Rxb4 {[%clk
0:00:04]} 55... Rxd6 {[%clk 0:00:17.9]} 56. Rxf4 {[%clk 0:00:05.9]} 56... Rg6+
{[%clk 0:00:18.4]} 57. Kh1 {[%clk 0:00:05.8]} 57... Rf6 {[%clk 0:00:19.2]} 58.
Ra4 {[%clk 0:00:06.9]} 58... Kf7 {[%clk 0:00:20.1]} 59. Kh2 {[%clk 0:00:08.3]}
59... Ke7 {[%clk 0:00:21]} 60. Kg3 {[%clk 0:00:09.6]} 60... Kd7 {[%clk
0:00:22.4]} 61. Kg4 {[%clk 0:00:08.1]} 61... h6 {[%clk 0:00:23.5]} 62. Rc4
{[%clk 0:00:05.9]} 62... Kd6 {[%clk 0:00:22.4]} 63. Rc8 {[%clk 0:00:04.5]} 63...
Kd5 {[%clk 0:00:23.2]} 64. Kg3 {[%clk 0:00:05]} 64... Kd4 {[%clk 0:00:22.2]} 65.
Kg4 {[%clk 0:00:05.5]} 65... Kd3 {[%clk 0:00:23.4]} 66. Kg3 {[%clk 0:00:06]}
66... Ke2 {[%clk 0:00:24.2]} 67. Rc2+ {[%clk 0:00:05.3]} 67... Kd3 {[%clk
0:00:25.4]} 68. Rc8 {[%clk 0:00:05]} 68... Ke4 {[%clk 0:00:25.7]} 69. Re8+
{[%clk 0:00:04.9]} 69... Kd5 {[%clk 0:00:26.5]} 70. Rc8 {[%clk 0:00:04.7]} 70...
h5 {[%clk 0:00:22.4]} 71. Rc7 {[%clk 0:00:04.1]} 71... Kd4 {[%clk 0:00:17.1]}
72. Rc8 {[%clk 0:00:04.1]} 72... a5 {[%clk 0:00:18.6]} 73. Rc7 {[%clk
0:00:02.3]} 73... Rf5 {[%clk 0:00:20]} 74. Rc8 {[%clk 0:00:03]} 74... Rc5 {[%clk
0:00:20.2]} 75. Rd8+ {[%clk 0:00:02.6]} 75... Kc3 {[%clk 0:00:21.2]} 76. Kxf3
{[%clk 0:00:03.4]} 76... a4 {[%clk 0:00:22.6]} 77. Ra8 {[%clk 0:00:04.3]} 77...
Kb4 {[%clk 0:00:23.7]} 78. Kg3 {[%clk 0:00:04.9]} 78... a3 {[%clk 0:00:25]} 79.
Rb8+ {[%clk 0:00:05.9]} 79... Rb5 {[%clk 0:00:26.1]} 80. Re8 {[%clk 0:00:07.1]}
80... a2 {[%clk 0:00:27.5]} 81. Re1 {[%clk 0:00:08.6]} 81... Kc3 {[%clk
0:00:28.8]} 0-1

[Event "*** Titled Tuesday 3|2 Blitz"]
[Site "Chess.com"]
[Date "2016.05.03"]
[Round "7"]
[White "Alexander_Donchenko"]
[Black "Yaacovn"]
[Result "0-1"]
[WhiteElo "2636"]
[BlackElo "2577"]
[TimeControl "180+2"]
[EndTime "12:27:37 PDT"]
[Termination "Yaacovn won by resignation"]

1. d4 {[%clk 0:03:01.4]} 1... Nf6 {[%clk 0:02:59.8]} 2. c4 {[%clk 0:03:02.4]}
2... e5 {[%clk 0:03:00]} 3. dxe5 {[%clk 0:03:03.1]} 3... Ne4 {[%clk 0:03:01.5]}
4. a3 {[%clk 0:03:02.5]} 4... d6 {[%clk 0:03:02.6]} 5. Nf3 {[%clk 0:02:58.2]}
5... Bf5 {[%clk 0:03:03.2]} 6. e3 {[%clk 0:02:55]} 6... Nc6 {[%clk 0:03:02.4]}
7. Nd4 {[%clk 0:02:45.6]} 7... dxe5 {[%clk 0:02:31.9]} 8. Nxf5 {[%clk
0:02:37.3]} 8... Qxd1+ {[%clk 0:02:32.9]} 9. Kxd1 {[%clk 0:02:38.7]} 9... Nxf2+
{[%clk 0:02:34.8]} 10. Ke1 {[%clk 0:02:36.4]} 10... Nxh1 {[%clk 0:02:36.7]} 11.
g4 {[%clk 0:02:31.1]} 11... g6 {[%clk 0:02:32.4]} 12. Nh4 {[%clk 0:02:29.9]}
12... Be7 {[%clk 0:02:33.8]} 13. Ng2 {[%clk 0:02:15.7]} 13... h5 {[%clk
0:02:34.3]} 14. g5 {[%clk 0:02:13.8]} 14... Bxg5 {[%clk 0:02:32.9]} 15. Be2
{[%clk 0:02:11.5]} 15... h4 {[%clk 0:02:29.9]} 16. Kf1 {[%clk 0:02:12.6]} 16...
h3 {[%clk 0:02:29.2]} 17. Ne1 {[%clk 0:02:13.6]} 17... Ng3+ {[%clk 0:02:29.3]}
18. hxg3 {[%clk 0:02:13]} 18... h2 {[%clk 0:02:30.7]} 19. Bf3 {[%clk 0:02:14.7]}
19... h1=Q+ {[%clk 0:02:32.3]} 20. Bxh1 {[%clk 0:02:16.4]} 20... Rxh1+ {[%clk
0:02:34.2]} 21. Kf2 {[%clk 0:02:17.9]} 21... e4 {[%clk 0:02:33.1]} 22. Nc3
{[%clk 0:02:18.2]} 22... f5 {[%clk 0:02:30.8]} 23. Nd5 {[%clk 0:02:19.2]} 23...
O-O-O {[%clk 0:02:31.4]} 24. Bd2 {[%clk 0:02:20.2]} 24... Ne5 {[%clk 0:02:29.5]}
25. Kg2 {[%clk 0:02:21]} 25... Rdh8 {[%clk 0:02:30.4]} 0-1

[Event "*** Titled Tuesday 3|2 Blitz"]
[Site "Chess.com"]
[Date "2016.05.03"]
[Round "7"]
[White "Fariasov-inactive"]
[Black "Carolina-moon"]
[Result "0-1"]
[WhiteElo "2169"]
[BlackElo "2046"]
[TimeControl "180+2"]
[EndTime "12:27:39 PDT"]
[Termination "Carolina-moon won by resignation"]

1. c4 {[%clk 0:03:01.9]} 1... f5 {[%clk 0:03:00.2]} 2. Nc3 {[%clk 0:03:02.1]}
2... Nf6 {[%clk 0:03:01.3]} 3. d4 {[%clk 0:03:03.1]} 3... g6 {[%clk 0:03:02.4]}
4. g3 {[%clk 0:03:03.9]} 4... Bg7 {[%clk 0:03:03.8]} 5. Bg2 {[%clk 0:03:05.3]}
5... O-O {[%clk 0:03:04.8]} 6. Nf3 {[%clk 0:03:06.6]} 6... d6 {[%clk 0:03:06]}
7. O-O {[%clk 0:03:07.3]} 7... c6 {[%clk 0:03:07.4]} 8. b3 {[%clk 0:03:08]} 8...
Na6 {[%clk 0:03:07]} 9. Bb2 {[%clk 0:03:08.7]} 9... Qa5 {[%clk 0:03:07.3]} 10.
Re1 {[%clk 0:03:08.7]} 10... Ne4 {[%clk 0:03:06.7]} 11. Nxe4 {[%clk 0:03:06.1]}
11... fxe4 {[%clk 0:03:07.7]} 12. Ng5 {[%clk 0:03:05.3]} 12... d5 {[%clk
0:03:08.6]} 13. a3 {[%clk 0:03:01.4]} 13... h6 {[%clk 0:02:52]} 14. Nh3 {[%clk
0:03:00.8]} 14... Bf5 {[%clk 0:02:39.3]} 15. e3 {[%clk 0:03:00.2]} 15... g5
{[%clk 0:02:32.2]} 16. b4 {[%clk 0:02:58.2]} 16... Qd8 {[%clk 0:02:31.4]} 17.
Qb3 {[%clk 0:02:50.4]} 17... Qd7 {[%clk 0:02:20.7]} 18. cxd5 {[%clk 0:02:28.8]}
18... cxd5 {[%clk 0:02:18.1]} 19. Rac1 {[%clk 0:02:26.6]} 19... Rad8 {[%clk
0:02:09.5]} 20. Kh1 {[%clk 0:02:23.1]} 20... Bxh3 {[%clk 0:02:09.4]} 21. Bxh3
{[%clk 0:02:23.7]} 21... Qxh3 {[%clk 0:02:10.2]} 22. b5 {[%clk 0:02:25]} 22...
Rxf2 {[%clk 0:02:05]} 0-1

[Event "*** Titled Tuesday 3|2 Blitz"]
[Site "Chess.com"]
[Date "2016.05.03"]
[Round "7"]
[White "smurfo"]
[Black "Bentery"]
[Result "1-0"]
[WhiteElo "2533"]
[BlackElo "2356"]
[TimeControl "180+2"]
[EndTime "12:27:43 PDT"]
[Termination "smurfo won by resignation"]

1. e4 {[%clk 0:03:01.9]} 1... e6 {[%clk 0:03:01.5]} 2. d4 {[%clk 0:03:01.4]}
2... d5 {[%clk 0:03:03]} 3. Nc3 {[%clk 0:03:03.3]} 3... Nf6 {[%clk 0:03:03.9]}
4. e5 {[%clk 0:03:04.1]} 4... Nfd7 {[%clk 0:03:05.2]} 5. f4 {[%clk 0:03:05.5]}
5... c5 {[%clk 0:03:06.8]} 6. Nf3 {[%clk 0:03:07]} 6... Nc6 {[%clk 0:03:08.4]}
7. Be3 {[%clk 0:03:07.1]} 7... cxd4 {[%clk 0:03:09.6]} 8. Nxd4 {[%clk
0:03:06.2]} 8... Bc5 {[%clk 0:03:11.1]} 9. Qd2 {[%clk 0:03:03.9]} 9... O-O
{[%clk 0:03:12.2]} 10. O-O-O {[%clk 0:03:03.7]} 10... a6 {[%clk 0:03:13.4]} 11.
Qf2 {[%clk 0:02:50.9]} 11... Qe7 {[%clk 0:03:14.3]} 12. Bd3 {[%clk 0:02:41.2]}
12... Nxd4 {[%clk 0:02:55.8]} 13. Bxd4 {[%clk 0:02:40.3]} 13... b5 {[%clk
0:02:56.9]} 14. Kb1 {[%clk 0:02:25.6]} 14... Bxd4 {[%clk 0:02:45.3]} 15. Qxd4
{[%clk 0:02:25.4]} 15... b4 {[%clk 0:02:46.8]} 16. Na4 {[%clk 0:02:25.3]} 16...
Bb7 {[%clk 0:02:47.4]} 17. f5 {[%clk 0:02:25.8]} 17... Bc6 {[%clk 0:02:42.6]}
18. f6 {[%clk 0:02:19.2]} 18... gxf6 {[%clk 0:02:43.1]} 19. Qg4+ {[%clk
0:02:16.3]} 19... Kh8 {[%clk 0:02:36.9]} 20. Qh4 {[%clk 0:02:16.2]} 20... f5
{[%clk 0:02:13]} 21. Qxe7 {[%clk 0:02:13.1]} 21... Bxa4 {[%clk 0:02:14.6]} 22.
g4 {[%clk 0:02:13.7]} 1-0

[Event "*** Titled Tuesday 3|2 Blitz"]
[Site "Chess.com"]
[Date "2016.05.03"]
[Round "7"]
[White "Zurability"]
[Black "ChadaevNikolay"]
[Result "0-1"]
[WhiteElo "2413"]
[BlackElo "2568"]
[TimeControl "180+2"]
[EndTime "12:28:43 PDT"]
[Termination "ChadaevNikolay won by resignation"]

1. e4 {[%clk 0:03:01.9]} 1... c5 {[%clk 0:03:00.1]} 2. Nc3 {[%clk 0:03:01.7]}
2... Nc6 {[%clk 0:03:00.4]} 3. Nge2 {[%clk 0:03:02.8]} 3... g6 {[%clk
0:03:00.4]} 4. d4 {[%clk 0:03:03.5]} 4... cxd4 {[%clk 0:02:59.5]} 5. Nxd4 {[%clk
0:03:05.4]} 5... Bg7 {[%clk 0:03:00.9]} 6. Be3 {[%clk 0:03:07]} 6... Nf6 {[%clk
0:02:56.6]} 7. Bc4 {[%clk 0:03:08.5]} 7... O-O {[%clk 0:02:57.2]} 8. Bb3 {[%clk
0:03:09.5]} 8... d6 {[%clk 0:02:55]} 9. f3 {[%clk 0:03:10.8]} 9... Bd7 {[%clk
0:02:53.9]} 10. Qd2 {[%clk 0:03:12.2]} 10... Nxd4 {[%clk 0:02:54.8]} 11. Bxd4
{[%clk 0:03:13.5]} 11... b5 {[%clk 0:02:56.5]} 12. a4 {[%clk 0:03:15]} 12...
bxa4 {[%clk 0:02:55.8]} 13. Bxa4 {[%clk 0:03:16.9]} 13... Bxa4 {[%clk
0:02:49.2]} 14. Rxa4 {[%clk 0:03:18.8]} 14... Qb8 {[%clk 0:02:46.1]} 15. O-O
{[%clk 0:03:16.2]} 15... Rc8 {[%clk 0:02:43.7]} 16. b3 {[%clk 0:03:07.3]} 16...
a6 {[%clk 0:02:39.5]} 17. Rfa1 {[%clk 0:03:06.4]} 17... Qb7 {[%clk 0:02:39.9]}
18. Qd3 {[%clk 0:03:04.9]} 18... Rc6 {[%clk 0:02:40.4]} 19. Ne2 {[%clk
0:03:05.9]} 19... h5 {[%clk 0:02:28.4]} 20. b4 {[%clk 0:02:52.1]} 20... Nd7
{[%clk 0:01:54.8]} 21. Bxg7 {[%clk 0:02:52.5]} 21... Kxg7 {[%clk 0:01:55.4]} 22.
b5 {[%clk 0:02:53.5]} 22... Rb6 {[%clk 0:01:50.4]} 23. bxa6 {[%clk 0:02:37.4]}
23... Qc7 {[%clk 0:01:48.1]} 24. a7 {[%clk 0:02:14]} 24... Nc5 {[%clk
0:01:37.8]} 25. Ra5 {[%clk 0:02:13.9]} 25... Nxd3 {[%clk 0:01:37.7]} 0-1

[Event "*** Titled Tuesday 3|2 Blitz"]
[Site "Chess.com"]
[Date "2016.05.03"]
[Round "7"]
[White "Izoria123"]
[Black "Lupul_Cenusiu"]
[Result "1-0"]
[WhiteElo "2614"]
[BlackElo "2441"]
[TimeControl "180+2"]
[EndTime "12:29:46 PDT"]
[Termination "Izoria123 won by resignation"]

1. e4 {[%clk 0:02:57.7]} 1... d6 {[%clk 0:03:00.6]} 2. d4 {[%clk 0:02:57.8]}
2... g6 {[%clk 0:03:02]} 3. Nf3 {[%clk 0:02:57.1]} 3... Bg7 {[%clk 0:03:03.2]}
4. Bc4 {[%clk 0:02:57.9]} 4... e6 {[%clk 0:03:03.4]} 5. Bb3 {[%clk 0:02:58.2]}
5... b6 {[%clk 0:02:58.8]} 6. O-O {[%clk 0:02:58.4]} 6... Bb7 {[%clk 0:02:59.6]}
7. Re1 {[%clk 0:02:59.2]} 7... Nd7 {[%clk 0:02:58.8]} 8. Nbd2 {[%clk 0:02:57.3]}
8... Ne7 {[%clk 0:02:58.8]} 9. Nf1 {[%clk 0:02:57.4]} 9... O-O {[%clk
0:02:59.5]} 10. Ng3 {[%clk 0:02:57.8]} 10... d5 {[%clk 0:03:00.2]} 11. e5 {[%clk
0:02:58.4]} 11... c5 {[%clk 0:02:57.5]} 12. c3 {[%clk 0:02:58.6]} 12... Nc6
{[%clk 0:02:58.3]} 13. h4 {[%clk 0:02:57.7]} 13... Rc8 {[%clk 0:02:55.9]} 14. h5
{[%clk 0:02:51.1]} 14... Qc7 {[%clk 0:02:55.8]} 15. hxg6 {[%clk 0:02:49.8]}
15... fxg6 {[%clk 0:02:54.4]} 16. Be3 {[%clk 0:02:48.3]} 16... Na5 {[%clk
0:02:48.5]} 17. Ng5 {[%clk 0:02:41.3]} 17... Rce8 {[%clk 0:02:44.7]} 18. Bc2
{[%clk 0:02:27.9]} 18... cxd4 {[%clk 0:02:00.6]} 19. cxd4 {[%clk 0:02:24.8]}
19... Rc8 {[%clk 0:01:38.7]} 20. Rc1 {[%clk 0:02:23.1]} 20... Qd8 {[%clk
0:01:38.1]} 21. Nxh7 {[%clk 0:02:22.1]} 21... Rxc2 {[%clk 0:01:38.2]} 22. Rxc2
{[%clk 0:02:00.6]} 22... Kxh7 {[%clk 0:01:38.3]} 23. Qg4 {[%clk 0:02:00.4]}
23... Nc4 {[%clk 0:01:26.2]} 24. Qxe6 {[%clk 0:01:56.7]} 24... Nb8 {[%clk
0:01:13.5]} 25. Qh3+ {[%clk 0:01:43]} 25... Kg8 {[%clk 0:01:13.9]} 26. Qg4
{[%clk 0:01:44.2]} 26... Bc8 {[%clk 0:01:10.7]} 27. Qxg6 {[%clk 0:01:42.2]}
27... Bf5 {[%clk 0:01:10.7]} 28. Nxf5 {[%clk 0:01:42]} 1-0

[Event "*** Titled Tuesday 3|2 Blitz"]
[Site "Chess.com"]
[Date "2016.05.03"]
[Round "7"]
[White "Ksenia_Legenko"]
[Black "Rating-Schmating"]
[Result "1-0"]
[WhiteElo "2063"]
[BlackElo "2210"]
[TimeControl "180+2"]
[EndTime "12:29:53 PDT"]
[Termination "Ksenia_Legenko won by checkmate"]

1. d4 {[%clk 0:03:01.9]} 1... e6 {[%clk 0:03:01.9]} 2. c4 {[%clk 0:03:02.4]}
2... b6 {[%clk 0:03:01.1]} 3. Nf3 {[%clk 0:03:00.5]} 3... Bb7 {[%clk 0:03:00.1]}
4. Nbd2 {[%clk 0:03:01.6]} 4... Nf6 {[%clk 0:03:00.3]} 5. g3 {[%clk 0:03:00.3]}
5... c5 {[%clk 0:03:00.9]} 6. Bg2 {[%clk 0:02:56.5]} 6... cxd4 {[%clk
0:03:01.7]} 7. O-O {[%clk 0:02:57]} 7... d5 {[%clk 0:02:59.7]} 8. Nxd4 {[%clk
0:02:55.8]} 8... Bc5 {[%clk 0:02:59]} 9. N2b3 {[%clk 0:02:52.6]} 9... O-O {[%clk
0:02:58.2]} 10. Nxc5 {[%clk 0:02:51.4]} 10... bxc5 {[%clk 0:02:58.7]} 11. Nb5
{[%clk 0:02:35.7]} 11... Qb6 {[%clk 0:02:57.6]} 12. b3 {[%clk 0:02:28.6]} 12...
a6 {[%clk 0:02:56.6]} 13. Nc3 {[%clk 0:02:29.2]} 13... dxc4 {[%clk 0:02:56]} 14.
Bxb7 {[%clk 0:02:25.6]} 14... Qxb7 {[%clk 0:02:56.7]} 15. bxc4 {[%clk 0:02:27]}
15... Nbd7 {[%clk 0:02:57.9]} 16. Be3 {[%clk 0:02:23.8]} 16... Qc6 {[%clk
0:02:58.4]} 17. Qa4 {[%clk 0:02:15.7]} 17... Qxa4 {[%clk 0:02:54.5]} 18. Nxa4
{[%clk 0:02:16.2]} 18... Rac8 {[%clk 0:02:55.6]} 19. Rab1 {[%clk 0:02:16.9]}
19... Ne4 {[%clk 0:02:53.1]} 20. Rb7 {[%clk 0:02:12.6]} 20... Ne5 {[%clk
0:02:53]} 21. Rc1 {[%clk 0:02:07.8]} 21... Nd6 {[%clk 0:02:50.5]} 22. Ra7 {[%clk
0:01:55.7]} 22... Ndxc4 {[%clk 0:02:47.8]} 23. Bxc5 {[%clk 0:01:55.2]} 23...
Rfd8 {[%clk 0:02:43.9]} 24. f4 {[%clk 0:01:52.5]} 24... Ng4 {[%clk 0:02:31.2]}
25. Rxc4 {[%clk 0:01:47.2]} 25... Rd1+ {[%clk 0:02:32]} 26. Kg2 {[%clk
0:01:48.1]} 26... h5 {[%clk 0:02:30.9]} 27. Rc3 {[%clk 0:01:38.9]} 27... Re1
{[%clk 0:02:28.8]} 28. Bf2 {[%clk 0:01:29.9]} 28... Rxe2 {[%clk 0:02:26.9]} 29.
Rxc8+ {[%clk 0:01:29.6]} 29... Kh7 {[%clk 0:02:26.1]} 30. h3 {[%clk 0:01:19.1]}
30... Rxf2+ {[%clk 0:02:26.8]} 31. Kg1 {[%clk 0:01:20.3]} 31... Rxa2 {[%clk
0:02:27.5]} 32. hxg4 {[%clk 0:01:20.6]} 32... Rxa4 {[%clk 0:02:28.8]} 33. gxh5
{[%clk 0:01:18]} 33... Ra1+ {[%clk 0:02:29.1]} 34. Kg2 {[%clk 0:01:18.9]} 34...
Ra2+ {[%clk 0:02:30.7]} 35. Kh3 {[%clk 0:01:19.4]} 35... f5 {[%clk 0:02:31.6]}
36. Rcc7 {[%clk 0:01:19.9]} 36... Ra1 {[%clk 0:02:32.1]} 37. Rxg7+ {[%clk
0:01:20.1]} 37... Kh8 {[%clk 0:02:33.5]} 38. Rge7 {[%clk 0:01:18.7]} 38... Rh1+
{[%clk 0:02:33.8]} 39. Kg2 {[%clk 0:01:19.9]} 39... Rxh5 {[%clk 0:02:35.7]} 40.
Re8# {[%clk 0:01:20.8]} 1-0

[Event "*** Titled Tuesday 3|2 Blitz"]
[Site "Chess.com"]
[Date "2016.05.03"]
[Round "7"]
[White "HansCoolNiemann"]
[Black "eugeniusjr"]
[Result "1-0"]
[WhiteElo "2272"]
[BlackElo "1887"]
[TimeControl "180+2"]
[EndTime "12:30:11 PDT"]
[Termination "HansCoolNiemann won by resignation"]

1. d4 {[%clk 0:03:01.9]} 1... Nf6 {[%clk 0:03:00.4]} 2. c4 {[%clk 0:03:02.7]}
2... g6 {[%clk 0:03:01.8]} 3. Nc3 {[%clk 0:03:03.6]} 3... d5 {[%clk 0:03:03.1]}
4. Nf3 {[%clk 0:03:02.5]} 4... Bg7 {[%clk 0:03:03.7]} 5. Bg5 {[%clk 0:03:03.4]}
5... Ne4 {[%clk 0:03:04.4]} 6. cxd5 {[%clk 0:03:03]} 6... Nxg5 {[%clk
0:03:04.8]} 7. Nxg5 {[%clk 0:03:04.9]} 7... e6 {[%clk 0:03:06.3]} 8. Qd2 {[%clk
0:03:04.8]} 8... exd5 {[%clk 0:03:07.2]} 9. Qe3+ {[%clk 0:03:04.5]} 9... Kf8
{[%clk 0:03:08.6]} 10. Qf4 {[%clk 0:03:05.5]} 10... Bf6 {[%clk 0:03:08.7]} 11.
h4 {[%clk 0:03:06.4]} 11... h6 {[%clk 0:03:09.2]} 12. Nf3 {[%clk 0:03:06.8]}
12... Kg7 {[%clk 0:03:08]} 13. e3 {[%clk 0:03:07.3]} 13... Re8 {[%clk
0:02:57.4]} 14. Bd3 {[%clk 0:03:07.1]} 14... c5 {[%clk 0:02:56.6]} 15. O-O-O
{[%clk 0:02:59.7]} 15... Nc6 {[%clk 0:02:51.4]} 16. g4 {[%clk 0:02:57.5]} 16...
cxd4 {[%clk 0:02:17.5]} 17. exd4 {[%clk 0:02:59.4]} 17... Be6 {[%clk 0:01:54.8]}
18. g5 {[%clk 0:02:59.4]} 18... hxg5 {[%clk 0:01:54.6]} 19. hxg5 {[%clk
0:03:01.3]} 19... Be7 {[%clk 0:01:52.7]} 20. Rh6 {[%clk 0:02:53.7]} 20... Qb6
{[%clk 0:01:45.1]} 21. Qh4 {[%clk 0:02:51.3]} 21... Rh8 {[%clk 0:01:41.3]} 22.
Rh1 {[%clk 0:02:48.9]} 22... Rhg8 {[%clk 0:01:34.3]} 23. Rh7+ {[%clk 0:02:39.5]}
23... Kf8 {[%clk 0:01:34.7]} 24. Rh8 {[%clk 0:02:41.4]} 24... Bxg5+ {[%clk
0:00:58.2]} 25. Qxg5 {[%clk 0:02:35]} 25... Ne7 {[%clk 0:00:55.6]} 26. Qf6
{[%clk 0:02:21.3]} 26... Ke8 {[%clk 0:00:48.5]} 27. Rxg8+ {[%clk 0:02:18.3]}
27... Nxg8 {[%clk 0:00:48.9]} 28. Rh8 {[%clk 0:02:19.2]} 28... Kd7 {[%clk
0:00:48.1]} 29. Ne5+ {[%clk 0:02:18.1]} 29... Kc7 {[%clk 0:00:42.7]} 30. Nb5+
{[%clk 0:02:13.6]} 30... Qxb5 {[%clk 0:00:33.3]} 31. Rxg8 {[%clk 0:02:08.3]} 1-0

[Event "*** Titled Tuesday 3|2 Blitz"]
[Site "Chess.com"]
[Date "2016.05.03"]
[Round "7"]
[White "Zazuliak"]
[Black "GulamaliRises"]
[Result "0-1"]
[WhiteElo "2370"]
[BlackElo "2574"]
[TimeControl "180+2"]
[EndTime "12:30:16 PDT"]
[Termination "GulamaliRises won by resignation"]

1. d4 {[%clk 0:02:59]} 1... d6 {[%clk 0:03:01.2]} 2. Nf3 {[%clk 0:02:57.2]} 2...
Nf6 {[%clk 0:03:02.6]} 3. c4 {[%clk 0:02:58.1]} 3... g6 {[%clk 0:03:00.9]} 4.
Nc3 {[%clk 0:02:58.3]} 4... Bg7 {[%clk 0:03:02.3]} 5. e4 {[%clk 0:02:59]} 5...
O-O {[%clk 0:03:04.2]} 6. Be2 {[%clk 0:02:59.2]} 6... c5 {[%clk 0:03:05.6]} 7.
O-O {[%clk 0:02:58.9]} 7... Nc6 {[%clk 0:03:06.9]} 8. d5 {[%clk 0:02:55.8]} 8...
Na5 {[%clk 0:03:08]} 9. Qc2 {[%clk 0:02:49.4]} 9... Bg4 {[%clk 0:03:08.3]} 10.
Nd2 {[%clk 0:02:33.9]} 10... Bxe2 {[%clk 0:03:06.6]} 11. Nxe2 {[%clk 0:02:34.4]}
11... Nd7 {[%clk 0:03:06.6]} 12. Rb1 {[%clk 0:02:32.7]} 12... e5 {[%clk
0:03:03.1]} 13. a3 {[%clk 0:02:14.6]} 13... b6 {[%clk 0:03:01.4]} 14. b4 {[%clk
0:02:12.1]} 14... Nb7 {[%clk 0:03:02.7]} 15. Bb2 {[%clk 0:02:10.5]} 15... cxb4
{[%clk 0:02:56.3]} 16. axb4 {[%clk 0:02:10.2]} 16... a5 {[%clk 0:02:58.2]} 17.
bxa5 {[%clk 0:02:06.9]} 17... bxa5 {[%clk 0:02:58.5]} 18. f4 {[%clk 0:02:02.8]}
18... Nbc5 {[%clk 0:02:57.4]} 19. fxe5 {[%clk 0:02:01.7]} 19... Nxe5 {[%clk
0:02:56.7]} 20. Nf3 {[%clk 0:01:58.8]} 20... Re8 {[%clk 0:02:46.6]} 21. Ned4
{[%clk 0:01:37.3]} 21... a4 {[%clk 0:02:43.9]} 22. Nxe5 {[%clk 0:01:31.5]} 22...
Bxe5 {[%clk 0:02:42.4]} 23. Nc6 {[%clk 0:01:32]} 23... Qg5 {[%clk 0:02:35.8]}
24. Bxe5 {[%clk 0:01:27.7]} 24... dxe5 {[%clk 0:01:58.7]} 25. Qf2 {[%clk
0:01:20.1]} 25... Nxe4 {[%clk 0:01:59.3]} 26. Qxf7+ {[%clk 0:01:20.5]} 26... Kh8
{[%clk 0:02:00.8]} 27. Rb7 {[%clk 0:01:16.1]} 27... Qe3+ {[%clk 0:02:01.7]} 28.
Kh1 {[%clk 0:01:16.1]} 28... Qh6 {[%clk 0:02:03]} 29. Qc7 {[%clk 0:00:35.7]}
29... Ng3+ {[%clk 0:02:02.4]} 30. Kg1 {[%clk 0:00:36]} 30... Qe3+ {[%clk
0:02:04.3]} 0-1